fUSD/lending_fUSD_20240123
["ID","MTS","AMOUNT","RATE_DAILY","PERIOD"]
[312551314,1705968079008,-200.0,0.00021133,2]
[312551315,1705968079036,-4275.93203836,0.00021133,2]
[312551316,1705968079062,-3146.91697734,0.00021134,2]
[312551317,1705968079090,-664.49,0.00021135,2]
[312551318,1705968079120,-369.89,0.00021161,2]
[312551319,1705968079146,-250.0,0.00021161,2]
[312551320,1705968079173,-286.49,0.0002119,2]
[312551321,1705968079202,-167.3,0.00021274,2]
[312551322,1705968079226,-200.0,0.00021302,2]
[312551323,1705968079253,-1800.0,0.00021302,2]
[312551324,1705968079262,-195.7,0.00021333,2]
[312551325,1705968079272,-177.68,0.00021411,2]
[312551326,1705968079281,-1572.21,0.00021644,2]
[312551327,1705968079290,-499.99,0.00021644,2]
[312551328,1705968079299,-30.35203836,0.00021644,2]
[312551329,1705968079311,-419.36796164,0.00021644,2]
[312551330,1705968079320,-160.56,0.00021821,2]
[312551331,1705968079328,-150.0,0.0002187,2]
[312551332,1705968079338,-300.0,0.0002187,2]
[312551333,1705968079348,-1022.55,0.00021871,2]
[312551334,1705968079357,-999.99,0.00021871,2]
[312551335,1705968079367,-94.4490157,0.00021871,2]
[312551336,1705968079385,-209.1309843,0.00021871,2]
[312551337,1705968079394,-250.0,0.00021918,2]
[312551338,1705968079403,-205.3590157,0.00021918,2]
[312551339,1705968079419,-369.89,0.00021918,2]
[312551340,1705968079435,-250.0,0.00021918,2]
[312551341,1705968079454,-286.49,0.00021918,2]
[312551342,1705968079470,-167.3,0.00021918,2]
[312551343,1705968079481,-31.4709843,0.00021918,2]
[312551344,1705968079490,-552.7854,0.0002194,2]
[312551345,1705968079499,-693.7055843,0.0002194,2]
[312551346,1705968152522,-443.26829546,0.00022999,10]
[312551347,1705968152546,-443.26829547,0.00022999,10]
[312551348,1705968164001,-7103.57322363,0.00022139,5]
[312551349,1705968176530,292.79,0.00019802,2]
[312551350,1705968187090,-2000.0,0.0002172,2]
[312551351,1705968187113,-150.0,0.00021939,2]
[312551352,1705968187135,-150.0,0.00021939,2]
[312551353,1705968187159,-3146.91697734,0.00021939,2]
[312551354,1705968187182,-306.2944157,0.0002194,2]
[312551355,1705968187205,-2279.1156,0.0002194,2]
[312551356,1705968187229,-503.16,0.0002194,2]
[312551357,1705968187251,-150.99,0.0002194,2]
[312551358,1705968187273,-1000.0,0.0002194,2]
[312551359,1705968187295,-510.0822,0.0002194,2]
[312551360,1705968187316,-718.0381,0.0002194,2]
[312551361,1705968187338,-2486.68440898,0.0002194,2]
[312551362,1705968187360,-163.7650008,0.00022038,2]
[312551363,1705968187381,-155.000001,0.00022038,2]
[312551364,1705968187403,-25171.15415085,0.00022038,2]
[312551365,1705968187425,-155.0,0.00022038,2]
[312551366,1705968187447,-2500.0,0.0002204,2]
[312551367,1705968187477,-292.79,0.00022066,2]
[312551368,1705968187499,-163.76500072,0.00022083,2]
[312551369,1705968187522,-163.76500072,0.00022129,2]
[312551370,1705968187543,-318.96402389,0.00022138,2]
[312551371,1705968187568,-785.0108361,0.00022138,2]
[312551372,1705968187594,-199.32847921,0.00022139,2]
[312551373,1705968187616,-651.85793696,0.00022139,2]
[312551374,1705968187637,-354.6810307,0.00022139,2]
[312551375,1705968187659,-55523.63683703,0.0002214,2]
[312551377,1705968321256,243.73456165,0.00020688,2]
[312551378,1705968373444,-691.78,0.00021756,2]
[312551379,1705968373467,-359.77,0.00021803,2]
[312551380,1705968373491,-250.0,0.00021918,2]
[312551381,1705968373514,-206.91598215,0.00022039,2]
[312551382,1705968373536,-150.0,0.00022039,2]
[312551383,1705968373557,-1000.0,0.0002204,2]
[312551384,1705968373579,-1000.0,0.0002204,2]
[312551385,1705968373602,-252810.5223,0.0002204,2]
[312551386,1705968373631,-2000.0,0.0002204,2]
[312551387,1705968373656,-316.85532126,0.00022138,2]
[312551388,1705968373680,-739.57147915,0.00022139,2]
[312551389,1705968373708,-15474.58491744,0.0002214,2]
[312551390,1705968383766,-6000.0,0.0002214,2]
[312551392,1705968610533,263.51,0.00020303,2]
[312551397,1705968631822,-250.0,0.00021808,2]
[312551398,1705968631832,-160.62500001,0.00021835,2]
[312551399,1705968631847,-147.61499999,0.00021835,2]
[312551400,1705968631856,-1000.0,0.0002194,2]
[312551401,1705968631866,-960.04055001,0.0002204,2]
[312551402,1705968631878,-39.95944999,0.0002204,2]
[312551403,1705968631888,-150.0,0.00022139,2]
[312551404,1705968631898,-142.12021092,0.00022139,2]
[312551405,1705968631910,-157.87978908,0.00022139,2]
[312551406,1705968631920,-150.0,0.00022139,2]
[312551407,1705968631930,-82.84021092,0.0002214,2]
[312551408,1705968631942,-992.61528431,0.0002214,2]
[312551409,1705968631955,-8314.90419443,0.0002214,2]
[312551410,1705968631967,-1124.72457423,0.0002214,2]
[312551411,1705968631979,-12486.69398164,0.0002214,2]
[312551412,1705968631988,-43428.3686465,0.0002214,2]
[312551413,1705968632000,-444.60223245,0.0002214,2]
[312551415,1705968632011,-501.10653636,0.0002214,2]
[312551416,1705968632032,-42560.25,0.0002214,2]
[312551417,1705968632043,-1046.5,0.0002214,2]
[312551418,1705968632054,-418.79592,0.0002214,2]
[312551436,1705968637781,-2095.768675,0.0002214,2]
[312551437,1705968637803,-19590.38923141,0.0002214,2]
[312551438,1705968637815,-43241.92339477,0.0002214,2]
[312551439,1705968637827,-788.89410348,0.0002214,2]
[312551440,1705968637838,-475.25222268,0.0002214,2]
[312551441,1705968637890,-1581.061535,0.0002214,2]
[312551442,1705968637901,-6905.67645439,0.0002214,2]
[312551443,1705968637912,-474.36731343,0.0002214,2]
[312551444,1705968637923,-334.27671906,0.0002214,2]
[312551445,1705968637934,-373.40629385,0.0002214,2]
[312551446,1705968637945,-539.19362387,0.0002214,2]
[312551447,1705968637957,-416.57076621,0.0002214,2]
[312551448,1705968637984,-920.50000104,0.0002214,2]
[312551449,1705968638001,-9995.465,0.0002214,2]
[312551450,1705968638017,-308.46,0.0002214,2]
[312551451,1705968638034,-68559.1713305,0.0002214,2]
[312551452,1705968638047,-2000.0,0.00022157,2]
[312551453,1705968638058,-157.62,0.00022274,2]
[312551454,1705968638069,-263.51,0.00022567,2]
[312551455,1705968638084,-359.77,0.00022609,2]
[312551456,1705968638097,-800.0,0.00022816,2]
[312551457,1705968638109,-3005.22093109,0.00022894,2]
[312551458,1705968638121,-1000.0,0.000229,2]
[312551459,1705968638133,-20392.50518206,0.000229,2]
[312551460,1705968638145,-155.77618223,0.000229,2]
[312551462,1705968638158,-27740.35703208,0.000229,2]
[312551464,1705968638169,-164.9614827,0.000229,2]
[312551466,1705968638179,-4829.04791593,0.000229,2]
[312551469,1705968638191,-6240.0,0.00022955,2]
[312551471,1705968638203,-155.04297235,0.00022998,2]
[312551473,1705968638215,-3045.64408607,0.00022998,2]
[312551475,1705968638227,-1467.46749467,0.00022998,2]
[312551478,1705968638239,-242.58443095,0.00022998,2]
[312551480,1705968638250,-285.51851062,0.00022998,2]
[312551482,1705968638263,-1995.96512012,0.00022999,2]
[312551485,1705968638275,-1681.64709651,0.00022999,2]
[312551487,1705968638285,-2320.76864865,0.00022999,2]
[312551489,1705968638295,-2473.60462284,0.00022999,2]
[312551491,1705968638309,-1496.74930404,0.00022999,2]
[312551493,1705968638319,-180.77871897,0.00022999,2]
[312551496,1705968638333,-150.0,0.00022999,2]
[312551498,1705968638347,-150.0,0.00022999,2]
[312551500,1705968638358,-180.77871897,0.00022999,2]
[312551503,1705968638369,-150.0,0.00022999,2]
[312551505,1705968638380,-180.77871897,0.00022999,2]
[312551507,1705968638393,-150.0,0.00022999,2]
[312551510,1705968638405,-180.77871897,0.00022999,2]
[312551512,1705968638417,-150.0,0.00022999,2]
[312551514,1705968638430,-180.77871897,0.00022999,2]
[312551517,1705968638443,-150.0,0.00022999,2]
[312551519,1705968638457,-180.77871897,0.00022999,2]
[312551521,1705968638470,-150.0,0.00022999,2]
[312551524,1705968638482,-180.77871897,0.00022999,2]
[312551526,1705968638493,-150.0,0.00022999,2]
[312551528,1705968638504,-150.0,0.00022999,2]
[312551530,1705968638515,-180.77871897,0.00022999,2]
[312551532,1705968638526,-150.0,0.00022999,2]
[312551535,1705968638538,-180.77871897,0.00022999,2]
[312551537,1705968638550,-150.0,0.00022999,2]
[312551539,1705968638562,-180.77871897,0.00022999,2]
[312551541,1705968638573,-180.77871897,0.00022999,2]
[312551544,1705968638588,-156.93550965,0.00023,2]
[312551546,1705968638598,-98348.57,0.00023,2]
[312551548,1705968638608,-2167809.59488486,0.00023,2]
[312551550,1705968638618,-9907566.31565181,0.00023,2]
[312551553,1705968638636,-3345.75912601,0.00023,2]
[312551555,1705968638650,-1000.0,0.00023,2]
[312551558,1705968638663,-6797.91473934,0.00023,2]
[312551563,1705968638705,-1866.437905,0.00023,2]
[312551566,1705968638719,-2108.05622372,0.00023,2]
[312551568,1705968638732,-43638.49030465,0.00023,2]
[312551570,1705968638747,-562.44818142,0.00023,2]
[312551573,1705968638761,-3804.15434137,0.00023,2]
[312551582,1705968638842,-606.70110647,0.00023,2]
[312551584,1705968638855,-1916.48685601,0.00023,2]
[312551614,1705968640230,-3964.5,0.00023,2]
[312551615,1705968640349,-255.19209615,0.00023,2]
[312551616,1705968640363,-1966.32960277,0.00023,2]
[312551617,1705968640376,-505.68644935,0.00023,2]
[312551618,1705968640389,-2178.0121608,0.00023,2]
[312551619,1705968640402,-1765.57996769,0.00023,2]
[312551620,1705968640415,-270.75599993,0.00023,2]
[312551621,1705968640427,-1000.0,0.00023,2]
[312551622,1705968640449,-7517.54725814,0.00023,2]
[312551623,1705968640462,-8947.21879473,0.00023,2]
[312551624,1705968640475,-8943.78386462,0.00023,2]
[312551625,1705968640487,-9077.54866152,0.00023,2]
[312551626,1705968640500,-8943.84023489,0.00023,2]
[312551750,1705968643128,-364.2497038,0.000229,2]
[312551752,1705968643137,-4005.327463,0.00023,2]
[312551768,1705968643271,-4265.0,0.00023,2]
[312551866,1705968645787,-1236.80231142,0.00022999,2]
[312551867,1705968645797,-7451.71943492,0.00023,2]
[312551882,1705968645963,-3470.95122661,0.00023,2]
[312551884,1705968645975,-351664.37397392,0.00023,2]
[312551886,1705968645990,-17195.4920001,0.00023,2]
[312551898,1705968646278,-18309.19936545,0.00023,2]
[312551899,1705968646289,-1029.12,0.00023,2]
[312551900,1705968646328,-1885.10149959,0.00023,2]
[312551901,1705968646361,-4286.83202946,0.00023,2]
[312551902,1705968673811,400.0,0.000228,8]
[312551903,1705968675897,800.0,0.000229,8]
[312551904,1705969035251,258.28,0.00019489,2]
[312551905,1705969466742,269.23,0.00019131,2]
[312551906,1705969628706,300.0,0.000219,7]
[312551907,1705969630388,700.0,0.000228,8]
[312551908,1705969632065,1232.0,0.00033,30]
[312551909,1705969632504,696.42677637,0.000229,8]
[312551910,1705969632527,403.57322363,0.000229,8]
[312551911,1705969810459,205.99999999,0.00033,30]
[312551931,1705969831878,-614.479575,0.00021017,2]
[312551933,1705969831890,-710.16013816,0.00021017,2]
[312551935,1705969831902,-675.36028684,0.00021017,2]
[312551937,1705969831911,-229.23861385,0.00021021,2]
[312551938,1705969831941,-118.70138615,0.00021021,2]
[312551939,1705969831951,-429.2,0.00021034,2]
[312551940,1705969831961,-178.19579109,0.00021037,2]
[312551941,1705969832041,-88.06084685,0.00021135,2]
[312551942,1705969832055,-90.13494405,0.00021135,2]
[312551943,1705969832067,-167.3,0.00021137,2]
[312551944,1705969832077,-169.43458277,0.00021137,2]
[312551945,1705969832086,-169.43458277,0.00021171,2]
[312551946,1705969832097,-553.42,0.00021171,2]
[312551947,1705969832106,-154.95,0.00021223,2]
[312551948,1705969832116,-160.56,0.00021227,2]
[312551949,1705969832125,-178.1957909,0.00021233,2]
[312551950,1705969832134,-178.1957909,0.00021331,2]
[312551951,1705969832145,-269.23,0.00021395,2]
[312551952,1705969832155,-178.1957909,0.00021429,2]
[312551953,1705969832165,-154.95,0.00021499,2]
[312551954,1705969832174,-499.99,0.00021499,2]
[312551955,1705969832183,-178.1957909,0.00021527,2]
[312551956,1705969832193,-178.1957909,0.00021625,2]
[312551957,1705969832202,-250.0,0.00021633,2]
[312551958,1705969832212,-408.19,0.00021644,2]
[312551959,1705969832222,-158.25,0.00021658,2]
[312551960,1705969832231,-166.79,0.00021688,2]
[312551961,1705969832240,-178.1957909,0.00021723,2]
[312551962,1705969832250,-154.95,0.00021776,2]
[312551963,1705969832259,-150.0,0.00021821,2]
[312551964,1705969832269,-300.0,0.00021821,2]
[312551965,1705969832278,-178.1957909,0.00021821,2]
[312551966,1705969832288,-250.0,0.00021918,2]
[312551967,1705969832297,-178.1957909,0.00021919,2]
[312551968,1705969832306,-776.58088236,0.00021939,2]
[312551969,1705969832319,-628.32851764,0.00021939,2]
[312551970,1705969832328,-349.9362,0.00021939,2]
[312551972,1705969832338,-911.80672784,0.00021939,2]
[312551974,1705969832350,-1204.31937216,0.00021939,2]
[312551976,1705969832360,-847.2909,0.00021939,2]
[312551978,1705969832369,-2458.203,0.00021939,2]
[312551980,1705969832378,-1000.0,0.00021939,2]
[312551982,1705969832388,-695.39,0.0002194,2]
[312551984,1705969832397,-192.60373434,0.0002194,2]
[312551986,1705969832407,-167.484097,0.0002194,2]
[312551988,1705969832416,-176.43,0.00022,2]
[312551990,1705969832425,-178.1957909,0.00022018,2]
[312551992,1705969832434,-247.31941884,0.0002203,2]
[312551993,1705969832444,-285.51851062,0.00022039,2]
[312551994,1705969832453,-146.15859974,0.00022039,2]
[312551995,1705969832477,-4269.08294647,0.00022039,2]
[312551996,1705969832489,-968.97329241,0.00022039,2]
[312551997,1705969832500,-547.4688403,0.00022039,2]
[312551998,1705969832511,-311.06238185,0.00022039,2]
[312551999,1705969832526,-96628.34543819,0.00022039,2]
[312552000,1705969832537,-103169.02460195,0.00022039,2]
[312552001,1705969832549,-911.11649018,0.00022039,2]
[312552002,1705969832560,-6118.06853277,0.00022039,2]
[312552003,1705969832573,-733.54363831,0.00022039,2]
[312552004,1705969832584,-1012.92672215,0.00022039,2]
[312552005,1705969832595,-610.44814184,0.00022039,2]
[312552006,1705969832606,-318.4195,0.00022039,2]
[312552007,1705969832634,-195734.73162736,0.00022039,2]
[312552008,1705969832643,-105334.11002008,0.0002204,2]
[312552009,1705969832654,-1733.57076319,0.0002204,2]
[312552021,1705969838176,-60337.82254433,0.0002204,2]
[312552022,1705969838187,-64877.40057291,0.0002204,2]
[312552023,1705969838198,-468.50164004,0.0002204,2]
[312552024,1705969838209,-12248.59445945,0.0002204,2]
[312552025,1705969838218,-6574.94713521,0.0002204,2]
[312552026,1705969838229,-10575.43615641,0.0002204,2]
[312552027,1705969838266,-4236.07839247,0.0002204,2]
[312552029,1705969838277,-9653.42588603,0.0002204,2]
[312552032,1705969838292,-968.587,0.0002204,2]
[312552033,1705969838303,-271.708502,0.0002204,2]
[312552034,1705969838315,-7537.39802788,0.0002204,2]
[312552035,1705969838325,-100000.0,0.0002204,2]
[312552036,1705969838335,-1000.0,0.0002204,2]
[312552037,1705969838345,-1000.0,0.0002204,2]
[312552038,1705969838356,-154.95,0.00022052,2]
[312552039,1705969838365,-178.1957909,0.00022116,2]
[312552040,1705969838375,-178.1957909,0.00022214,2]
[312552041,1705969838385,-553.4628103,0.00022257,2]
[312552043,1705969838395,-178.1957909,0.00022312,2]
[312552046,1705969838404,-154.95,0.00022329,2]
[312552048,1705969838413,-262.02,0.00022343,2]
[312552050,1705969838423,-178.1957909,0.0002241,2]
[312552052,1705969838432,-408.19,0.00022445,2]
[312552054,1705969838441,-178.1957909,0.00022508,2]
[312552056,1705969838450,-352.65,0.00022548,2]
[312552057,1705969838459,-178.1957909,0.00022606,2]
[312552058,1705969838468,-347.94,0.00022665,2]
[312552059,1705969838477,-150.0,0.00022707,2]
[312552060,1705969838486,-154.65333926,0.000229,2]
[312552061,1705969838495,-244.76080974,0.000229,2]
[312552062,1705969838504,-197.10688536,0.000229,2]
[312552063,1705969838513,-3145.8449708,0.00022998,2]
[312552064,1705969838523,-250.42352751,0.00022998,2]
[312552065,1705969838532,-3045.64408607,0.00022998,2]
[312552066,1705969838541,-618.40115571,0.00022999,2]
[312552067,1705969838550,-155.0,0.00022999,2]
[312552068,1705969838559,-301.41783471,0.00022999,2]
[312552069,1705969838568,-1164.0,0.00023,2]
[312552070,1705969838578,-1334030.25036955,0.00023,2]
[312552071,1705969838587,-43766.94314763,0.00023,2]
[312552072,1705969838596,-84567.3397515,0.00023001,2]
[312552073,1705969838605,-3018.8106634,0.00023001,2]
[312552074,1705969838616,-1308.6349423,0.00023001,2]
[312552075,1705969838625,-35662.3747694,0.00023001,2]
[312552076,1705969838634,-158.25,0.00023016,2]
[312552077,1705969838644,-408.19,0.00023245,2]
[312552078,1705969838653,-467.67978792,0.00023288,2]
[312552079,1705969838663,-269.23,0.00023659,2]
[312552080,1705969838673,-429.2,0.00023663,2]
[312552081,1705969838682,-420.0,0.00023716,2]
[312552082,1705969838691,-553.42,0.00023817,2]
[312552083,1705969838700,-408.19,0.00024046,2]
[312552084,1705969838709,-347.94,0.00024309,2]
[312552085,1705969838718,-158.25,0.00024375,2]
[312552086,1705969838727,-250.0,0.00024658,2]
[312552087,1705969838736,-408.19,0.00024847,2]
[312552088,1705969838744,-202.08717836,0.00025,2]
[312552089,1705969838754,-350.0,0.00025,3]
[312552090,1705969838763,-155.0,0.00025705,2]
[312552091,1705969838772,-624.03501934,0.00025705,2]
[312552092,1705969838919,-158.25,0.00025733,2]
[312552093,1705969838929,-180.0,0.00025777,2]
[312552094,1705969838939,-269.23,0.00025923,2]
[312552095,1705969838949,-347.94,0.00025953,2]
[312552096,1705969838958,-205.0,0.00026216,2]
[312552097,1705969838967,-429.2,0.00026292,2]
[312552098,1705969838977,-553.42,0.00026464,2]
[312552099,1705969838986,-2561.89,0.00026575,2]
[312552100,1705969838997,-416.44746731,0.00027,2]
[312552101,1705969839006,-400.0,0.00027,3]
[312552102,1705969839016,-2533.0,0.000273,2]
[312552103,1705969839025,-11626.0,0.000273,2]
[312552104,1705969839035,-156.43,0.00027397,2]
[312552105,1705969839044,-159.55,0.00027397,2]
[312552106,1705969839056,-164.08,0.00027397,2]
[312552107,1705969839070,-166.27,0.00027397,2]
[312552108,1705969839079,-206.58,0.00027397,2]
[312552109,1705969839089,-347.94,0.00027597,2]
[312552110,1705969839099,-206.58,0.00027758,2]
[312552111,1705969839111,-205.0,0.00027905,4]
[312552112,1705969839121,-206.58,0.00028118,2]
[312552113,1705969839130,-7999.99,0.00028118,6]
[312552114,1705969839141,-269.23,0.00028186,2]
[312552115,1705969839151,-206.58,0.00028479,2]
[312552116,1705969839160,-206.58,0.00028839,2]
[312552117,1705969839170,-429.2,0.00028922,2]
[312552118,1705969839179,-450.0,0.00029,3]
[312552119,1705969839189,-166.27,0.0002911,2]
[312552120,1705969839198,-553.42,0.0002911,2]
[312552121,1705969839208,-206.58,0.000292,2]
[312552122,1705969839217,-347.94,0.0002924,2]
[312552123,1705969839227,-1811.20210573,0.000295,7]
[312552124,1705969839237,-206.58,0.0002956,2]
[312552125,1705969839246,-205.0,0.00029594,7]
[312552126,1705969839256,-1500.0,0.000299,10]
[312552127,1705969839266,-206.58,0.00029921,2]
[312552128,1705969839276,-1052.12401341,0.0003,4]
[312552129,1705969839285,-155.0,0.0003,2]
[312552130,1705969839294,-442906.21575998,0.0003,2]
[312552131,1705969839304,-960.4191832,0.0003,2]
[312552132,1705969839313,-56239.29253309,0.0003,2]
[312552133,1705969839343,-4633.95688715,0.0003,2]
[312552134,1705969839369,-972.85601305,0.0003,2]
[312552135,1705969839380,-1804.00008,0.0003,2]
[312552136,1705969839399,-24548.32476051,0.0003,2]
[312552142,1705969841192,-1611.47986946,0.0003,2]
[312552143,1705969841204,-1813.16157911,0.0003,2]
[312552144,1705969841227,-445.16382771,0.0003,2]
[312552146,1705969841294,-4292.4,0.0003,2]
[312552147,1705969841305,-3988.8618,0.0003,2]
[312552148,1705969841317,-526.34601085,0.0003,2]
[312552169,1705969842952,-1784.00503434,0.0003,2]
[312552177,1705969843042,-46426.33492877,0.0003,2]
[312552178,1705969843053,-3346.36310345,0.0003,2]
[312552179,1705969843065,-7867.0,0.0003,2]
[312552180,1705969843075,-357.87420369,0.0003,2]
[312552181,1705969843085,-177.149859,0.0003,2]
[312552182,1705969843095,-3000.0,0.0003,2]
[312552183,1705969843104,-3000.0,0.0003,2]
[312552184,1705969843113,-168.68,0.0003,2]
[312552185,1705969843122,-154143.2184134,0.000301,2]
[312552186,1705969843131,-206.58,0.00030281,2]
[312552187,1705969843141,-269.23,0.0003045,2]
[312552188,1705969843151,-206.58,0.00030642,2]
[312552189,1705969843160,-166.27,0.00030822,2]
[312552190,1705969843170,-500.0,0.00031,3]
[312552191,1705969843179,-206.58,0.00031002,2]
[312552192,1705969843188,-3000.0,0.0003127,2]
[312552193,1705969843198,-205.0,0.00031283,10]
[312552194,1705969843208,-206.58,0.00031363,2]
[312552195,1705969843217,-210.0,0.00031493,2]
[312552196,1705969843227,-429.2,0.00031551,2]
[312552197,1705969843236,-180.0,0.00031644,2]
[312552198,1705969843246,-206.58,0.00031723,2]
[312552199,1705969843255,-553.42,0.00031756,2]
[312552201,1705969843264,-35208.91829768,0.000318,3]
[312552203,1705969843276,-102270.25939732,0.000318,3]
[312552205,1705969843285,-206.58,0.00032084,2]
[312552207,1705969843295,-1211.47144126,0.00032183,4]
[312552209,1705969843304,-206.58,0.00032444,2]
[312552211,1705969843313,-155.0,0.000325,2]
[312552213,1705969843322,-166.27,0.00032534,2]
[312552214,1705969843334,-1128.0,0.00032548,2]
[312552215,1705969843344,-269.23,0.00032714,2]
[312552216,1705969843353,-206.58,0.00032805,2]
[312552217,1705969843362,-200.89,0.00032877,15]
[312552218,1705969843371,-205.0,0.00032972,13]
[312552219,1705969843380,-550.0,0.00033,3]
[312552220,1705969843389,-866.197572,0.00033,2]
[312552227,1705969843399,-170.0,0.00033,2]
[312552228,1705969843707,-206.58,0.00033165,2]
[312552229,1705969843717,-150.0,0.00033202,2]
[312552230,1705969843726,-150.0,0.00033202,2]
[312552231,1705969843735,-150.0,0.00033202,2]
[312552232,1705969843744,-152.12837504,0.0003333,2]
[312552233,1705969843753,-6314.48480418,0.000335,4]
[312552234,1705969843762,-206.58,0.00033526,2]
[312552235,1705969843771,-3000.0,0.0003377,2]
[312552236,1705969843780,-419.73126398,0.0003386,4]
[312552237,1705969843789,-524.19831016,0.00033875,4]
[312552238,1705969843798,-155.0,0.00033875,4]
[312552239,1705969843808,-940.96622262,0.00033875,4]
[312552240,1705969843818,-155.0,0.00033875,2]
[312552241,1705969843828,-487.24115174,0.00033875,4]
[312552242,1705969843837,-8324.8679988,0.00033877,2]
[312552243,1705969843847,-723.7617052,0.00033877,2]
[312552244,1705969843856,-2021.25442929,0.00033877,4]
[312552245,1705969843865,-246.78899767,0.00033877,4]
[312552246,1705969843874,-1045.79945445,0.00033877,4]
[312552247,1705969843884,-177.91292476,0.00033877,4]
[312552248,1705969843893,-155.0,0.00033877,4]
[312552249,1705969843903,-232.10612969,0.00033877,4]
[312552250,1705969843912,-361.86478892,0.00033877,4]
[312552251,1705969843921,-207.78272895,0.00033877,4]
[312552252,1705969843930,-155.0,0.00033877,4]
[312552253,1705969843939,-1061.34191461,0.00033877,4]
[312552254,1705969843948,-155.0,0.00033877,4]
[312552255,1705969843958,-155.0,0.00033877,4]
[312552256,1705969843967,-258.78146186,0.00033877,4]
[312552257,1705969843976,-155.0,0.00033877,4]
[312552258,1705969843986,-1011.14014512,0.00033878,2]
[312552259,1705969843995,-206.58,0.00033886,2]
[312552260,1705969844005,-1000.0,0.00034,4]
[312552261,1705969844014,-500.0,0.00034,2]
[312552262,1705969844023,-506.61948755,0.00034,4]
[312552263,1705969844033,-5000.0,0.0003409,2]
[312552264,1705969844042,-156.43,0.00034247,2]
[312552265,1705969844052,-166.27,0.00034247,2]
[312552266,1705969844062,-206.58,0.00034247,2]
[312552267,1705969844072,-170.0,0.00034521,2]
[312552268,1705969844084,-150.0,0.00034548,10]
[312552269,1705969844093,-205.0,0.00034662,16]
[312552270,1705969844103,-503.61346443,0.000349,2]
[312552271,1705969844112,-503.61346443,0.000349,2]
[312552272,1705969844122,-503.61346443,0.000349,2]
[312552273,1705969844131,-503.61346443,0.000349,2]
[312552274,1705969844141,-503.61346443,0.000349,2]
[312552275,1705969844151,-503.61346443,0.000349,2]
[312552276,1705969844161,-503.61346443,0.000349,2]
[312552277,1705969844171,-269.23,0.00034978,2]
[312552278,1705969844180,-1300.0,0.00035,30]
[312552279,1705969844190,-261.7746561,0.00035,3]
[312552280,1705969844199,-218.445499,0.00035,2]
[312552281,1705969844209,-600.0,0.00035,3]
[312552282,1705969844218,-5326.57355187,0.00035,2]
[312552283,1705969844228,-19133.17801413,0.0003509,2]
[312552284,1705969844238,-244.76080974,0.0003535,2]
[312552285,1705969844247,-197.10688536,0.0003535,2]
[312552286,1705969844256,-1900.0,0.000359,13]
[312552287,1705969844266,-503.61346443,0.0003594,2]
[312552288,1705969844275,-271426.45919595,0.00036,7]
[312552289,1705969844285,-151.0123,0.00036148,6]
[312552290,1705969844294,-151.0123,0.00036148,6]
[312552291,1705969844303,-151.0123,0.00036148,6]
[312552292,1705969844312,-150.0,0.00036202,2]
[312552293,1705969844322,-150.0,0.00036202,2]
[312552294,1705969844332,-20000.0,0.00036247,2]
[312552295,1705969844341,-1000.0,0.00036247,2]
[312552296,1705969844351,-3000.0,0.0003627,2]
[312552297,1705969844360,-2390.39323209,0.00036328,4]
[312552298,1705969844369,-500.0,0.00036346,2]
[312552299,1705969844379,-500.0,0.00036346,2]
[312552300,1705969844388,-500.0,0.00036346,2]
[312552301,1705969844397,-500.0,0.00036346,2]
[312552302,1705969844407,-500.0,0.00036346,2]
[312552303,1705969844416,-500.0,0.00036346,2]
[312552304,1705969844425,-500.0,0.00036346,2]